[Event "Late-Titled-Tuesday-Blitz-May-07-2024"]
[Site "Chess.com"]
[Date "2024.05.07"]
[Round "6"]
[White "Caterpiller35"]
[Black "azikom"]
[Result "0-1"]
[WhiteElo "2435"]
[BlackElo "2744"]
[TimeControl "180+1"]
[EndTime "15:06:54 PDT"]
[Termination "azikom won by resignation"]

1. d4 {[%clk 0:02:59.1]} 1... d5 {[%clk 0:02:59.2]} 2. Bf4 {[%clk 0:02:58.3]}
2... e6 {[%clk 0:02:57.3]} 3. e3 {[%clk 0:02:58.9]} 3... Bd6 {[%clk 0:02:56.6]}
4. Bd3 {[%clk 0:02:59.1]} 4... Bxf4 {[%clk 0:02:55.5]} 5. exf4 {[%clk 0:03:00]}
5... c5 {[%clk 0:02:54.9]} 6. dxc5 {[%clk 0:02:59.8]} 6... Qc7 {[%clk
0:02:51.2]} 7. Qd2 {[%clk 0:02:55.6]} 7... Qxc5 {[%clk 0:02:49.1]} 8. Nf3 {[%clk
0:02:56.1]} 8... Nc6 {[%clk 0:02:48.1]} 9. O-O {[%clk 0:02:55.9]} 9... Nge7
{[%clk 0:02:47.7]} 10. c3 {[%clk 0:02:54.8]} 10... a6 {[%clk 0:02:43]} 11. Na3
{[%clk 0:02:54.6]} 11... O-O {[%clk 0:02:39.1]} 12. Nc2 {[%clk 0:02:53.2]} 12...
h6 {[%clk 0:02:38]} 13. Rfe1 {[%clk 0:02:48.7]} 13... Bd7 {[%clk 0:02:36.9]} 14.
Rad1 {[%clk 0:02:48.6]} 14... Rfc8 {[%clk 0:02:35.6]} 15. Ncd4 {[%clk
0:02:48.4]} 15... Nxd4 {[%clk 0:02:32.2]} 16. Nxd4 {[%clk 0:02:46.6]} 16... b5
{[%clk 0:02:27.3]} 17. f5 {[%clk 0:02:42.6]} 17... Nxf5 {[%clk 0:02:25]} 18.
Bxf5 {[%clk 0:02:42.5]} 18... exf5 {[%clk 0:02:25.9]} 19. Re5 {[%clk 0:02:42.7]}
19... Re8 {[%clk 0:02:22.2]} 20. Rde1 {[%clk 0:02:42.7]} 20... Rxe5 {[%clk
0:02:17.8]} 21. Rxe5 {[%clk 0:02:43.6]} 21... f6 {[%clk 0:01:42.1]} 22. Re1
{[%clk 0:02:29.7]} 22... Qd6 {[%clk 0:01:29.6]} 23. Qd3 {[%clk 0:02:23.6]} 23...
g6 {[%clk 0:01:26.6]} 24. h4 {[%clk 0:02:17.8]} 24... h5 {[%clk 0:01:25.8]} 25.
a3 {[%clk 0:01:58.5]} 25... Kg7 {[%clk 0:01:20.1]} 26. Re3 {[%clk 0:01:39.1]}
26... Rf8 {[%clk 0:01:16.7]} 27. Qe2 {[%clk 0:01:37.8]} 27... Rf7 {[%clk
0:01:15.7]} 28. Qf3 {[%clk 0:01:35.1]} 28... f4 {[%clk 0:01:02.9]} 29. Re1
{[%clk 0:01:34.3]} 29... Bg4 {[%clk 0:01:01.8]} 30. Qd3 {[%clk 0:01:32.3]} 30...
Re7 {[%clk 0:01:00.5]} 31. Rxe7+ {[%clk 0:01:27.8]} 31... Qxe7 {[%clk
0:01:01.4]} 32. f3 {[%clk 0:01:25.3]} 32... Bd7 {[%clk 0:00:59.3]} 33. Kf2
{[%clk 0:01:25.4]} 33... f5 {[%clk 0:00:49.6]} 34. g3 {[%clk 0:01:25.4]} 34...
fxg3+ {[%clk 0:00:48.4]} 35. Kxg3 {[%clk 0:01:26.3]} 35... f4+ {[%clk
0:00:48.5]} 36. Kxf4 {[%clk 0:01:25.5]} 36... Qxh4+ {[%clk 0:00:48.8]} 37. Ke3
{[%clk 0:01:26.4]} 37... Qg5+ {[%clk 0:00:48.3]} 38. Kf2 {[%clk 0:01:26.1]}
38... h4 {[%clk 0:00:46.9]} 39. Qe3 {[%clk 0:01:20.1]} 39... Qxe3+ {[%clk
0:00:46]} 40. Kxe3 {[%clk 0:01:21]} 40... g5 {[%clk 0:00:42]} 41. Kf2 {[%clk
0:01:20.9]} 41... Kf6 {[%clk 0:00:42.5]} 42. Kg2 {[%clk 0:01:19.7]} 42... Ke5
{[%clk 0:00:42.5]} 43. Kf2 {[%clk 0:01:19]} 43... Kf4 {[%clk 0:00:41.1]} 44.
Ne2+ {[%clk 0:01:18.7]} 44... Ke5 {[%clk 0:00:41.6]} 45. Nd4 {[%clk 0:01:19.3]}
45... a5 {[%clk 0:00:41.1]} 46. Ne2 {[%clk 0:01:17.3]} 46... a4 {[%clk
0:00:40.4]} 47. Nd4 {[%clk 0:01:17.3]} 47... Kd6 {[%clk 0:00:40.4]} 48. Nc2
{[%clk 0:01:08]} 48... Kc5 {[%clk 0:00:39.4]} 49. Ne3 {[%clk 0:01:08.2]} 49...
d4 {[%clk 0:00:38.7]} 50. cxd4+ {[%clk 0:01:08.9]} 50... Kxd4 {[%clk 0:00:39.6]}
51. f4 {[%clk 0:00:59.9]} 51... g4 {[%clk 0:00:35.7]} 52. f5 {[%clk 0:01:00.1]}
52... g3+ {[%clk 0:00:34.6]} 53. Kf3 {[%clk 0:01:00.4]} 53... Ke5 {[%clk
0:00:31.4]} 54. Kg4 {[%clk 0:00:56.7]} 54... Ke4 {[%clk 0:00:20.4]} 55. Ng2
{[%clk 0:00:52.3]} 55... Bxf5+ {[%clk 0:00:18.1]} 56. Kxh4 {[%clk 0:00:52.3]}
56... Kf3 {[%clk 0:00:18.3]} 0-1

[Event "Late-Titled-Tuesday-Blitz-May-07-2024"]
[Site "Chess.com"]
[Date "2024.05.07"]
[Round "6"]
[White "Emp3rador"]
[Black "Mops_2004"]
[Result "0-1"]
[WhiteElo "2635"]
[BlackElo "2808"]
[TimeControl "180+1"]
[EndTime "15:06:55 PDT"]
[Termination "Mops_2004 won on time"]

1. e4 {[%clk 0:03:00.9]} 1... c5 {[%clk 0:02:59.7]} 2. Nf3 {[%clk 0:02:59.4]}
2... Nc6 {[%clk 0:02:59.9]} 3. Bb5 {[%clk 0:02:56.7]} 3... e6 {[%clk 0:02:59.7]}
4. O-O {[%clk 0:02:56]} 4... Nge7 {[%clk 0:02:59.5]} 5. Re1 {[%clk 0:02:56.3]}
5... Nd4 {[%clk 0:02:59.6]} 6. Bf1 {[%clk 0:02:53.7]} 6... Nxf3+ {[%clk
0:02:54.3]} 7. Qxf3 {[%clk 0:02:53.3]} 7... Nc6 {[%clk 0:02:54.7]} 8. b3 {[%clk
0:02:52.6]} 8... Be7 {[%clk 0:02:49.9]} 9. Bb2 {[%clk 0:02:51.8]} 9... O-O
{[%clk 0:02:48.9]} 10. Qg3 {[%clk 0:02:46.7]} 10... Bf6 {[%clk 0:02:45]} 11. e5
{[%clk 0:02:46.6]} 11... Bh4 {[%clk 0:02:37.8]} 12. Qg4 {[%clk 0:02:46.4]} 12...
f5 {[%clk 0:02:32.8]} 13. Qf3 {[%clk 0:02:27.8]} 13... b6 {[%clk 0:02:26.5]} 14.
d3 {[%clk 0:02:22.4]} 14... Bb7 {[%clk 0:02:26.1]} 15. Nd2 {[%clk 0:02:20.3]}
15... Rb8 {[%clk 0:02:14.5]} 16. Qd1 {[%clk 0:02:08.9]} 16... Be7 {[%clk
0:02:05.6]} 17. Nf3 {[%clk 0:02:04.9]} 17... g5 {[%clk 0:02:01.6]} 18. h3 {[%clk
0:01:31.6]} 18... h5 {[%clk 0:01:51.4]} 19. g4 {[%clk 0:00:29.2]} 19... Qe8
{[%clk 0:01:26.5]} 20. Bg2 {[%clk 0:00:28]} 20... Qg6 {[%clk 0:01:21.6]} 21. Nh2
{[%clk 0:00:18]} 21... hxg4 {[%clk 0:01:18.4]} 22. hxg4 {[%clk 0:00:17.7]} 22...
Nb4 {[%clk 0:01:08.2]} 23. Bxb7 {[%clk 0:00:16.5]} 23... Rxb7 {[%clk 0:01:07.6]}
24. a3 {[%clk 0:00:17.1]} 24... Nd5 {[%clk 0:01:07.3]} 25. c3 {[%clk 0:00:15.8]}
25... Rbb8 {[%clk 0:00:43]} 26. c4 {[%clk 0:00:16]} 26... Nf4 {[%clk 0:00:43]}
27. Re3 {[%clk 0:00:13.4]} 27... d5 {[%clk 0:00:37.5]} 28. exd6 {[%clk
0:00:11.8]} 28... Bxd6 {[%clk 0:00:37.5]} 29. Be5 {[%clk 0:00:11.2]} 29... Bxe5
{[%clk 0:00:36.9]} 30. Rxe5 {[%clk 0:00:12.1]} 30... Rb7 {[%clk 0:00:29.3]} 31.
Qf3 {[%clk 0:00:11.1]} 31... Rh7 {[%clk 0:00:26.1]} 32. Nf1 {[%clk 0:00:09.4]}
32... fxg4 {[%clk 0:00:22.4]} 33. Qxg4 {[%clk 0:00:08.7]} 33... Nh3+ {[%clk
0:00:22.4]} 34. Kg2 {[%clk 0:00:06.9]} 34... Rxf2+ {[%clk 0:00:19.4]} 35. Kg3
{[%clk 0:00:07.4]} 35... Rf5 {[%clk 0:00:19.3]} 36. Rae1 {[%clk 0:00:06.3]}
36... Nf4 {[%clk 0:00:16.9]} 37. Rxf5 {[%clk 0:00:04.4]} 37... exf5 {[%clk
0:00:17.4]} 38. Qd1 {[%clk 0:00:03.7]} 38... Rh3+ {[%clk 0:00:16.8]} 39. Kf2
{[%clk 0:00:04.1]} 39... Rxd3 {[%clk 0:00:17.3]} 40. Qc2 {[%clk 0:00:04]} 40...
Qf6 {[%clk 0:00:15.9]} 41. Ne3 {[%clk 0:00:02.8]} 41... Qd4 {[%clk 0:00:16.1]}
42. Qc1 {[%clk 0:00:01.7]} 42... Rd2+ {[%clk 0:00:15.6]} 43. Kg1 {[%clk
0:00:01.6]} 43... Nh3+ {[%clk 0:00:13]} 44. Kh1 {[%clk 0:00:01.5]} 44... Qe4+
{[%clk 0:00:13.3]} 0-1

[Event "Late-Titled-Tuesday-Blitz-May-07-2024"]
[Site "Chess.com"]
[Date "2024.05.07"]
[Round "6"]
[White "MaiqMaster"]
[Black "youngdinousaur"]
[Result "1-0"]
[WhiteElo "2500"]
[BlackElo "2312"]
[TimeControl "180+1"]
[EndTime "15:06:57 PDT"]
[Termination "MaiqMaster won on time"]

1. e4 {[%clk 0:03:00.9]} 1... c5 {[%clk 0:02:59.5]} 2. Nc3 {[%clk 0:02:57.9]}
2... Nc6 {[%clk 0:02:59.2]} 3. Bb5 {[%clk 0:02:57.9]} 3... Nd4 {[%clk
0:02:59.2]} 4. Nf3 {[%clk 0:02:57.7]} 4... Nxb5 {[%clk 0:02:58]} 5. Nxb5 {[%clk
0:02:58.6]} 5... g6 {[%clk 0:02:57.4]} 6. d4 {[%clk 0:02:57.3]} 6... a6 {[%clk
0:02:56.4]} 7. Nc3 {[%clk 0:02:55.6]} 7... Bg7 {[%clk 0:02:50.9]} 8. d5 {[%clk
0:02:47.3]} 8... d6 {[%clk 0:02:50.3]} 9. O-O {[%clk 0:02:46.7]} 9... Nf6 {[%clk
0:02:49.4]} 10. a4 {[%clk 0:02:46.3]} 10... Nd7 {[%clk 0:02:48.9]} 11. Nd2
{[%clk 0:02:45]} 11... O-O {[%clk 0:02:48.6]} 12. Nc4 {[%clk 0:02:44.9]} 12...
b6 {[%clk 0:02:42.4]} 13. Be3 {[%clk 0:02:40.4]} 13... Rb8 {[%clk 0:02:42.2]}
14. Qd2 {[%clk 0:02:39]} 14... Qc7 {[%clk 0:02:35.4]} 15. Bh6 {[%clk 0:02:33.9]}
15... b5 {[%clk 0:02:34.7]} 16. axb5 {[%clk 0:02:32.5]} 16... axb5 {[%clk
0:02:35.6]} 17. Na5 {[%clk 0:02:31.8]} 17... b4 {[%clk 0:02:23.9]} 18. Bxg7
{[%clk 0:02:22.5]} 18... Kxg7 {[%clk 0:02:23]} 19. Nc6 {[%clk 0:02:18.4]} 19...
bxc3 {[%clk 0:02:16.9]} 20. Qxc3+ {[%clk 0:02:19.3]} 20... f6 {[%clk 0:02:11.6]}
21. Nxb8 {[%clk 0:02:15.8]} 21... Qxb8 {[%clk 0:02:12.5]} 22. Ra4 {[%clk
0:02:07]} 22... Bb7 {[%clk 0:02:07.8]} 23. Rfa1 {[%clk 0:02:05.3]} 23... Qc7
{[%clk 0:02:07]} 24. b4 {[%clk 0:01:58.7]} 24... Rb8 {[%clk 0:02:03.7]} 25. Ra7
{[%clk 0:01:53.1]} 25... Qb6 {[%clk 0:02:00.6]} 26. bxc5 {[%clk 0:01:46.3]}
26... Nxc5 {[%clk 0:01:54.2]} 27. Qe3 {[%clk 0:01:42.6]} 27... Ra8 {[%clk
0:01:25.8]} 28. Rxa8 {[%clk 0:01:36.3]} 28... Bxa8 {[%clk 0:01:26.7]} 29. f4
{[%clk 0:01:33.4]} 29... Bb7 {[%clk 0:01:25.4]} 30. e5 {[%clk 0:01:32.4]} 30...
Bxd5 {[%clk 0:01:11.2]} 31. exf6+ {[%clk 0:01:27.9]} 31... exf6 {[%clk
0:01:11.4]} 32. Rd1 {[%clk 0:01:15.9]} 32... Bf7 {[%clk 0:01:09.8]} 33. Kh1
{[%clk 0:01:13.5]} 33... Qc6 {[%clk 0:01:06.7]} 34. Qe7 {[%clk 0:01:12.6]} 34...
d5 {[%clk 0:01:02.6]} 35. c4 {[%clk 0:01:07.9]} 35... dxc4 {[%clk 0:00:41.2]}
36. Rd6 {[%clk 0:01:07.3]} 36... Qb7 {[%clk 0:00:32.1]} 37. Qxf6+ {[%clk
0:01:04.6]} 37... Kh6 {[%clk 0:00:17.7]} 38. Qg5+ {[%clk 0:01:04.4]} 38... Kg7
{[%clk 0:00:17.7]} 39. Qxc5 {[%clk 0:01:04.8]} 39... Qb1+ {[%clk 0:00:16.2]} 40.
Qg1 {[%clk 0:01:05.2]} 40... Qe4 {[%clk 0:00:14.2]} 41. Qa1+ {[%clk 0:01:00]}
41... Kh6 {[%clk 0:00:13.1]} 42. Qc1 {[%clk 0:00:58.3]} 42... Kg7 {[%clk
0:00:09.6]} 43. Qc3+ {[%clk 0:00:53.8]} 43... Kh6 {[%clk 0:00:10.1]} 44. Qc1
{[%clk 0:00:38]} 44... Bd5 {[%clk 0:00:06.2]} 45. f5+ {[%clk 0:00:34]} 45... Kg7
{[%clk 0:00:06.2]} 46. Qc3+ {[%clk 0:00:28.5]} 46... Kh6 {[%clk 0:00:03.8]} 47.
Qd2+ {[%clk 0:00:23.8]} 47... Kg7 {[%clk 0:00:02.7]} 48. Rxd5 {[%clk 0:00:22.2]}
48... Qb1+ {[%clk 0:00:01.2]} 49. Qd1 {[%clk 0:00:22.3]} 49... Qxd1+ {[%clk
0:00:00.8]} 50. Rxd1 {[%clk 0:00:23.2]} 1-0

[Event "Late-Titled-Tuesday-Blitz-May-07-2024"]
[Site "Chess.com"]
[Date "2024.05.07"]
[Round "6"]
[White "NMJeevanK"]
[Black "N_Mullodzhanov"]
[Result "1-0"]
[WhiteElo "2762"]
[BlackElo "2555"]
[TimeControl "180+1"]
[EndTime "15:07:01 PDT"]
[Termination "NMJeevanK won by checkmate"]

1. d4 {[%clk 0:02:56.7]} 1... Nf6 {[%clk 0:02:59.6]} 2. c4 {[%clk 0:02:54.9]}
2... g6 {[%clk 0:03:00]} 3. Nc3 {[%clk 0:02:54.6]} 3... Bg7 {[%clk 0:03:00.4]}
4. g3 {[%clk 0:02:54]} 4... O-O {[%clk 0:02:59.9]} 5. Bg2 {[%clk 0:02:54.3]}
5... d6 {[%clk 0:03:00.4]} 6. Nf3 {[%clk 0:02:53.1]} 6... c5 {[%clk 0:03:00.1]}
7. d5 {[%clk 0:02:47.6]} 7... e6 {[%clk 0:02:56.3]} 8. O-O {[%clk 0:02:45.5]}
8... exd5 {[%clk 0:02:56.2]} 9. cxd5 {[%clk 0:02:43.6]} 9... Re8 {[%clk
0:02:54.3]} 10. Bf4 {[%clk 0:02:38.1]} 10... a6 {[%clk 0:02:52]} 11. Re1 {[%clk
0:02:34.9]} 11... b5 {[%clk 0:02:51.9]} 12. Qd2 {[%clk 0:02:21.9]} 12... Bb7
{[%clk 0:02:50.1]} 13. Bh6 {[%clk 0:02:15.8]} 13... b4 {[%clk 0:02:37.3]} 14.
Na4 {[%clk 0:02:08.3]} 14... Bxd5 {[%clk 0:02:32.9]} 15. Rad1 {[%clk 0:01:56.3]}
15... Bc6 {[%clk 0:02:22.6]} 16. Nxc5 {[%clk 0:01:49.6]} 16... Bxh6 {[%clk
0:01:44.4]} 17. Qxh6 {[%clk 0:01:47.1]} 17... Qb6 {[%clk 0:01:13.8]} 18. Rxd6
{[%clk 0:01:35]} 18... Ng4 {[%clk 0:01:00.2]} 19. Qc1 {[%clk 0:01:32]} 19... Nd7
{[%clk 0:00:43.9]} 20. Nd3 {[%clk 0:00:56.3]} 20... Rac8 {[%clk 0:00:28.4]} 21.
Qf4 {[%clk 0:00:53.7]} 21... Re4 {[%clk 0:00:22.5]} 22. Qd2 {[%clk 0:00:41.8]}
22... Nc5 {[%clk 0:00:16.7]} 23. Nxc5 {[%clk 0:00:38]} 23... Qxc5 {[%clk
0:00:17.6]} 24. Rd8+ {[%clk 0:00:38.6]} 24... Re8 {[%clk 0:00:16.4]} 25. Rxe8+
{[%clk 0:00:37.1]} 25... Rxe8 {[%clk 0:00:17.3]} 26. Qd4 {[%clk 0:00:28.6]}
26... Qh5 {[%clk 0:00:14.7]} 27. h3 {[%clk 0:00:21.1]} 27... Nh6 {[%clk
0:00:05.1]} 28. Qxb4 {[%clk 0:00:18.6]} 28... a5 {[%clk 0:00:05.5]} 29. Qc3
{[%clk 0:00:18.5]} 29... Bd5 {[%clk 0:00:05]} 30. a3 {[%clk 0:00:12.4]} 30... f5
{[%clk 0:00:03.6]} 31. Rd1 {[%clk 0:00:11]} 31... Bf7 {[%clk 0:00:03.2]} 32. e3
{[%clk 0:00:10.1]} 32... f4 {[%clk 0:00:02.5]} 33. gxf4 {[%clk 0:00:10.1]} 33...
Bd5 {[%clk 0:00:02.1]} 34. Rxd5 {[%clk 0:00:05]} 34... Qxd5 {[%clk 0:00:03]} 35.
Ne5 {[%clk 0:00:05.9]} 35... Qe6 {[%clk 0:00:03.4]} 36. Qd3 {[%clk 0:00:05.8]}
36... Nf7 {[%clk 0:00:02]} 37. Bd5 {[%clk 0:00:05.7]} 37... Qd6 {[%clk
0:00:01.4]} 38. Bxf7+ {[%clk 0:00:05.9]} 38... Kf8 {[%clk 0:00:01.9]} 39. Qxd6+
{[%clk 0:00:06.8]} 39... Kg7 {[%clk 0:00:02.1]} 40. Bxe8 {[%clk 0:00:07.1]}
40... a4 {[%clk 0:00:02.6]} 41. Qe7+ {[%clk 0:00:07.2]} 41... Kh6 {[%clk
0:00:02.9]} 42. Qg5+ {[%clk 0:00:07.6]} 42... Kg7 {[%clk 0:00:03.3]} 43. Bxg6
{[%clk 0:00:08.2]} 43... Kh8 {[%clk 0:00:01.5]} 44. Qd8+ {[%clk 0:00:07.8]}
44... Kg7 {[%clk 0:00:01.9]} 45. Qe7+ {[%clk 0:00:08.5]} 45... Kh6 {[%clk
0:00:02.4]} 46. Qxh7# {[%clk 0:00:09.1]} 1-0

[Event "Late-Titled-Tuesday-Blitz-May-07-2024"]
[Site "Chess.com"]
[Date "2024.05.07"]
[Round "6"]
[White "Veleamater"]
[Black "GlavkonVVS"]
[Result "1-0"]
[WhiteElo "2445"]
[BlackElo "2654"]
[TimeControl "180+1"]
[EndTime "15:07:03 PDT"]
[Termination "Veleamater won by resignation"]

1. g3 {[%clk 0:03:00.9]} 1... Nf6 {[%clk 0:02:59.3]} 2. Bg2 {[%clk 0:03:00.6]}
2... d5 {[%clk 0:02:59.6]} 3. d3 {[%clk 0:03:01.2]} 3... Bf5 {[%clk 0:02:59.5]}
4. Nf3 {[%clk 0:03:01.8]} 4... c6 {[%clk 0:02:59.6]} 5. O-O {[%clk 0:03:02.5]}
5... e6 {[%clk 0:02:58.6]} 6. Nc3 {[%clk 0:03:03.1]} 6... h6 {[%clk 0:02:57.6]}
7. h3 {[%clk 0:03:03.6]} 7... Bh7 {[%clk 0:02:57.3]} 8. Nd4 {[%clk 0:03:02.6]}
8... Be7 {[%clk 0:02:46.6]} 9. e4 {[%clk 0:03:02.6]} 9... O-O {[%clk 0:02:33.1]}
10. e5 {[%clk 0:03:01.4]} 10... Nfd7 {[%clk 0:02:32.9]} 11. f4 {[%clk
0:02:56.9]} 11... Bc5 {[%clk 0:02:30.8]} 12. Ne2 {[%clk 0:02:56.4]} 12... f6
{[%clk 0:02:22.5]} 13. Kh2 {[%clk 0:02:53.4]} 13... Qe7 {[%clk 0:02:17.7]} 14.
exf6 {[%clk 0:02:49.5]} 14... Qxf6 {[%clk 0:02:14.4]} 15. Nb3 {[%clk 0:02:49]}
15... Bd6 {[%clk 0:02:12.7]} 16. d4 {[%clk 0:02:48.8]} 16... Na6 {[%clk
0:02:06.3]} 17. c3 {[%clk 0:02:48.6]} 17... Nc7 {[%clk 0:02:00.2]} 18. Nd2
{[%clk 0:02:47.5]} 18... c5 {[%clk 0:01:42.5]} 19. Nf3 {[%clk 0:02:45.3]} 19...
cxd4 {[%clk 0:01:26.2]} 20. Qxd4 {[%clk 0:02:44.5]} 20... Bc5 {[%clk 0:01:23.2]}
21. Qxf6 {[%clk 0:02:44.1]} 21... gxf6 {[%clk 0:01:18.4]} 22. Ned4 {[%clk
0:02:42.2]} 22... Rae8 {[%clk 0:01:12.3]} 23. Nb3 {[%clk 0:02:39.8]} 23... Bd6
{[%clk 0:01:09.3]} 24. Be3 {[%clk 0:02:38.5]} 24... b6 {[%clk 0:01:08.4]} 25.
Rae1 {[%clk 0:02:32.7]} 25... Kg7 {[%clk 0:01:07.8]} 26. Rf2 {[%clk 0:02:30.8]}
26... e5 {[%clk 0:01:06.2]} 27. Bd2 {[%clk 0:02:23.6]} 27... exf4 {[%clk
0:01:01.4]} 28. Bxf4 {[%clk 0:02:23.6]} 28... Bxf4 {[%clk 0:01:00.2]} 29. gxf4
{[%clk 0:02:23.3]} 29... Rxe1 {[%clk 0:00:56.3]} 30. Nxe1 {[%clk 0:02:23]} 30...
Re8 {[%clk 0:00:56.1]} 31. Nf3 {[%clk 0:02:16.5]} 31... Bb1 {[%clk 0:00:44.4]}
32. a3 {[%clk 0:02:11.5]} 32... Nc5 {[%clk 0:00:43.3]} 33. Nbd4 {[%clk
0:02:08.3]} 33... Be4 {[%clk 0:00:37]} 34. Nh4 {[%clk 0:02:06.5]} 34... Kh7
{[%clk 0:00:25.8]} 35. Bf1 {[%clk 0:01:59.8]} 35... N7e6 {[%clk 0:00:22.4]} 36.
Ndf5 {[%clk 0:01:51.6]} 36... Rd8 {[%clk 0:00:18.8]} 37. Bg2 {[%clk 0:01:47.2]}
37... Bxg2 {[%clk 0:00:18.1]} 38. Nxg2 {[%clk 0:01:42]} 38... Nd3 {[%clk
0:00:18.8]} 39. Rd2 {[%clk 0:01:39.2]} 39... Ndxf4 {[%clk 0:00:18.9]} 40. Nxf4
{[%clk 0:01:32.8]} 40... Nxf4 {[%clk 0:00:19.4]} 41. Ne7 {[%clk 0:01:33.4]}
41... Ne6 {[%clk 0:00:19.9]} 42. Nc6 {[%clk 0:01:32.5]} 42... Rd7 {[%clk
0:00:18.6]} 43. Kg3 {[%clk 0:01:31.4]} 43... Kg6 {[%clk 0:00:18]} 44. Kf3 {[%clk
0:01:30.4]} 44... Kf7 {[%clk 0:00:17.8]} 45. Nb4 {[%clk 0:01:29]} 45... d4
{[%clk 0:00:17.8]} 46. Nc6 {[%clk 0:01:22.5]} 46... Ng5+ {[%clk 0:00:16.3]} 47.
Kg4 {[%clk 0:01:20.4]} 47... d3 {[%clk 0:00:16.1]} 48. Nd4 {[%clk 0:01:15.8]}
48... Kg6 {[%clk 0:00:15.5]} 49. Rxd3 {[%clk 0:00:56.3]} 49... f5+ {[%clk
0:00:15.7]} 50. Kf4 {[%clk 0:00:55]} 50... Ne6+ {[%clk 0:00:15.7]} 51. Ke5
{[%clk 0:00:55.1]} 51... Nxd4 {[%clk 0:00:15.3]} 52. cxd4 {[%clk 0:00:55.2]}
52... Re7+ {[%clk 0:00:14.1]} 53. Kd6 {[%clk 0:00:55.1]} 53... Re2 {[%clk
0:00:13.5]} 54. b4 {[%clk 0:00:53]} 54... f4 {[%clk 0:00:13.8]} 55. Kc7 {[%clk
0:00:50.9]} 55... Re3 {[%clk 0:00:12.4]} 56. Rd2 {[%clk 0:00:51.1]} 56... f3
{[%clk 0:00:12.5]} 57. d5 {[%clk 0:00:50.4]} 57... Re2 {[%clk 0:00:12.9]} 58.
Rd3 {[%clk 0:00:48.9]} 58... Rc2+ {[%clk 0:00:12.5]} 59. Kb7 {[%clk 0:00:48.6]}
59... f2 {[%clk 0:00:13]} 60. Rf3 {[%clk 0:00:48.5]} 60... Rc3 {[%clk 0:00:12]}
61. Rxf2 {[%clk 0:00:47.8]} 61... Rxa3 {[%clk 0:00:12.2]} 62. d6 {[%clk
0:00:48.2]} 62... Rd3 {[%clk 0:00:12]} 63. Kc7 {[%clk 0:00:47.2]} 63... a5
{[%clk 0:00:12.2]} 64. bxa5 {[%clk 0:00:46.8]} 64... bxa5 {[%clk 0:00:12.6]} 65.
d7 {[%clk 0:00:47.4]} 65... Kh5 {[%clk 0:00:12.7]} 66. d8=Q {[%clk 0:00:47]}
66... Rxd8 {[%clk 0:00:11.8]} 67. Kxd8 {[%clk 0:00:47.5]} 67... Kh4 {[%clk
0:00:11.9]} 68. Rf3 {[%clk 0:00:48]} 68... a4 {[%clk 0:00:12.3]} 69. Ke7 {[%clk
0:00:45.6]} 1-0

[Event "Late-Titled-Tuesday-Blitz-May-07-2024"]
[Site "Chess.com"]
[Date "2024.05.07"]
[Round "6"]
[White "Maitreia"]
[Black "ImportedItalianMaple"]
[Result "1-0"]
[WhiteElo "2705"]
[BlackElo "2529"]
[TimeControl "180+1"]
[EndTime "15:07:05 PDT"]
[Termination "Maitreia won by resignation"]

1. c4 {[%clk 0:03:00.9]} 1... g6 {[%clk 0:02:57.4]} 2. Nc3 {[%clk 0:02:59.5]}
2... Bg7 {[%clk 0:02:57.8]} 3. g3 {[%clk 0:03:00]} 3... d6 {[%clk 0:02:52.1]} 4.
Bg2 {[%clk 0:03:00.3]} 4... Nc6 {[%clk 0:02:49.3]} 5. Nf3 {[%clk 0:03:00.9]}
5... e5 {[%clk 0:02:48.4]} 6. O-O {[%clk 0:03:01.6]} 6... f5 {[%clk 0:02:48.7]}
7. d3 {[%clk 0:03:02.2]} 7... Nf6 {[%clk 0:02:49.1]} 8. Rb1 {[%clk 0:03:02.9]}
8... O-O {[%clk 0:02:49.6]} 9. b4 {[%clk 0:03:03.2]} 9... h6 {[%clk 0:02:50]}
10. b5 {[%clk 0:03:03.7]} 10... Ne7 {[%clk 0:02:50.2]} 11. a4 {[%clk 0:03:04.2]}
11... g5 {[%clk 0:02:50.5]} 12. Ba3 {[%clk 0:03:03.7]} 12... Ng6 {[%clk
0:02:45.1]} 13. c5 {[%clk 0:02:59.7]} 13... Re8 {[%clk 0:02:38]} 14. cxd6 {[%clk
0:02:57.4]} 14... cxd6 {[%clk 0:02:38.9]} 15. Nd2 {[%clk 0:02:57.3]} 15... d5
{[%clk 0:02:33.9]} 16. b6 {[%clk 0:02:39.3]} 16... a6 {[%clk 0:02:32.7]} 17. a5
{[%clk 0:02:35.4]} 17... Be6 {[%clk 0:02:32.8]} 18. Na4 {[%clk 0:02:35]} 18...
Rc8 {[%clk 0:02:33.3]} 19. Nc5 {[%clk 0:02:29.8]} 19... Qe7 {[%clk 0:02:31.1]}
20. Nxe6 {[%clk 0:02:24.9]} 20... Qxa3 {[%clk 0:02:31.1]} 21. Nc7 {[%clk
0:02:21.4]} 21... Red8 {[%clk 0:02:24.6]} 22. Nb3 {[%clk 0:01:58.8]} 22... Qd6
{[%clk 0:02:12.4]} 23. Qc2 {[%clk 0:01:54.1]} 23... Kh7 {[%clk 0:02:04.2]} 24.
Qc5 {[%clk 0:01:47.8]} 24... f4 {[%clk 0:01:54.4]} 25. Qxd6 {[%clk 0:01:44.7]}
25... Rxd6 {[%clk 0:01:54.3]} 26. Rfc1 {[%clk 0:01:43.4]} 26... Ne8 {[%clk
0:01:38.1]} 27. Bh3 {[%clk 0:01:37.5]} 27... Rb8 {[%clk 0:01:32.5]} 28. Nc5
{[%clk 0:01:27]} 28... Nf6 {[%clk 0:01:10.4]} 29. Bf5 {[%clk 0:01:20.4]} 29...
h5 {[%clk 0:00:58.8]} 30. N5xa6 {[%clk 0:01:12.4]} 30... bxa6 {[%clk 0:00:58.5]}
31. Nxa6 {[%clk 0:01:13.3]} 31... Rf8 {[%clk 0:00:52.8]} 32. Nc7 {[%clk
0:01:09.4]} 32... Nd7 {[%clk 0:00:41.9]} 33. Bxd7 {[%clk 0:01:02.8]} 33... Rxd7
{[%clk 0:00:42.8]} 34. b7 {[%clk 0:01:01.8]} 34... e4 {[%clk 0:00:28.8]} 35.
b8=Q {[%clk 0:00:39.4]} 35... Rxb8 {[%clk 0:00:29.4]} 36. Rxb8 {[%clk 0:00:40]}
36... f3 {[%clk 0:00:30.2]} 37. exf3 {[%clk 0:00:39.3]} 37... exd3 {[%clk
0:00:30.5]} 38. Rb7 {[%clk 0:00:25.9]} 38... d2 {[%clk 0:00:23.6]} 39. Rd1
{[%clk 0:00:25.8]} 39... Ne5 {[%clk 0:00:23.7]} 40. a6 {[%clk 0:00:22.6]} 40...
Nc4 {[%clk 0:00:24]} 41. a7 {[%clk 0:00:19.4]} 41... Rd8 {[%clk 0:00:21.6]} 42.
a8=Q {[%clk 0:00:18.8]} 42... Rxa8 {[%clk 0:00:22.3]} 43. Nxa8 {[%clk
0:00:18.8]} 43... Kg6 {[%clk 0:00:23.2]} 44. Rxg7+ {[%clk 0:00:17.6]} 44... Kxg7
{[%clk 0:00:23.4]} 45. Nc7 {[%clk 0:00:18.5]} 45... d4 {[%clk 0:00:22.8]} 46.
Ne6+ {[%clk 0:00:18]} 46... Kf6 {[%clk 0:00:22.8]} 47. Nxd4 {[%clk 0:00:18.9]}
47... Ke5 {[%clk 0:00:23.4]} 48. Nb3 {[%clk 0:00:19.1]} 48... Kf5 {[%clk
0:00:20.1]} 49. Rxd2 {[%clk 0:00:17.4]} 49... Ne5 {[%clk 0:00:21]} 50. Kg2
{[%clk 0:00:17]} 50... g4 {[%clk 0:00:21.2]} 51. fxg4+ {[%clk 0:00:15.4]} 51...
hxg4 {[%clk 0:00:22.1]} 52. Rd5 {[%clk 0:00:15]} 52... Ke4 {[%clk 0:00:22.2]}
53. Rxe5+ {[%clk 0:00:14.6]} 53... Kxe5 {[%clk 0:00:23.1]} 54. Nc1 {[%clk
0:00:13.8]} 54... Kf5 {[%clk 0:00:23.4]} 55. Ne2 {[%clk 0:00:14]} 55... Ke4
{[%clk 0:00:24.3]} 56. Nc3+ {[%clk 0:00:12.9]} 56... Kf5 {[%clk 0:00:25.2]} 57.
Nd1 {[%clk 0:00:13.5]} 57... Ke4 {[%clk 0:00:24.5]} 58. Ne3 {[%clk 0:00:14.4]}
58... Ke5 {[%clk 0:00:24.7]} 59. Nxg4+ {[%clk 0:00:14.9]} 59... Kf5 {[%clk
0:00:24.8]} 60. h3 {[%clk 0:00:15.8]} 60... Ke4 {[%clk 0:00:25.7]} 61. h4 {[%clk
0:00:16]} 61... Kf5 {[%clk 0:00:26.6]} 62. Ne3+ {[%clk 0:00:16.3]} 62... Ke4
{[%clk 0:00:26.7]} 63. Kh3 {[%clk 0:00:15.3]} 63... Kd3 {[%clk 0:00:27.6]} 1-0